bitfinex-derivatives/quotes_SOLF0:USTF0_20250509
["timestamp","ask_amount","ask_price","bid_price","bid_amount"]
[1746817029137,5.8138,172.0,171.97,5.8145]
[1746817030242,5.8143,171.98,171.95,5.815]
[1746817030447,5.8143,171.98,171.93,1.0]
[1746817030739,5.8148,171.97,171.94,5.8155]
[1746817031143,5.8148,171.97,171.93,1.0]
[1746817031946,35.37903947,172.01,171.93,1.0]
[1746817032151,25.82,172.01,171.93,1.0]
[1746817032348,25.82,172.01,171.94,1.9562]
[1746817032549,31.6335,172.01,171.95,1.8968]
[1746817032851,25.82,172.01,171.95,1.8968]
[1746817033053,25.82,172.01,171.99,5.8138]
[1746817033954,25.82,172.01,172.0,5.8136]
[1746817034560,25.82,172.01,171.99,5.8138]
[1746817035253,25.82,172.01,172.0,5.8136]
[1746817036151,25.82,172.01,171.99,5.8138]
[1746817036356,25.82,172.01,171.95,1.8968]
[1746817036759,31.6335,172.01,171.99,5.8139]
[1746817037458,31.6335,172.01,171.95,1.8968]
[1746817039761,31.6335,172.01,171.98,5.814]
[1746817039962,31.6335,172.01,171.95,1.8968]
[1746817040261,31.6335,172.01,171.98,5.8141]
[1746817040459,31.6335,172.01,171.95,1.8968]
[1746817041862,31.6335,172.01,171.98,5.814]
[1746817042267,25.82,172.01,171.98,5.814]
[1746817042763,25.82,172.01,171.99,5.8139]
[1746817043259,25.82,172.01,171.94,27.7562]
[1746817043655,5.8141,171.99,171.97,5.8144]
[1746817043965,25.82,172.01,171.97,5.8144]
[1746817044765,5.8137,172.0,171.97,5.8144]
[1746817045366,5.8137,172.0,171.98,5.8141]
[1746817045866,31.6334,172.01,171.98,5.8141]
[1746817047068,31.6334,172.01,171.99,5.8139]
[1746817050170,31.6334,172.01,171.98,5.8141]
[1746817058478,31.6334,172.01,171.99,5.8139]
[1746817060277,5.8137,172.0,171.98,5.8141]
[1746817060472,25.82,172.01,171.94,1.9562]
[1746817060778,31.6334,172.01,171.94,1.9562]
[1746817061179,25.82,172.01,171.94,1.9562]
[1746817061379,25.82,172.01,171.98,5.8142]
[1746817062180,31.6335,172.01,171.98,5.8142]
[1746817063181,5.8137,172.0,171.97,5.8145]
[1746817063383,25.82,172.01,171.94,1.9562]
[1746817063679,5.8143,171.98,171.95,5.8151]
[1746817063882,25.78,171.97,171.93,1.0]
[1746817064082,35.33903947,171.97,171.93,1.0]
[1746817066080,5.8156,171.94,171.93,1.0]
[1746817067085,35.33903947,171.94,171.87,357.0]
[1746817067277,25.78,171.93,171.86,2.0]
[1746817067877,27.6854,171.93,171.86,2.0]
[1746817068280,5.8167,171.91,171.87,5.8179]
[1746817068582,5.8167,171.91,171.86,2.0]
[1746817068781,5.8166,171.92,171.88,5.8177]
[1746817069082,27.6854,171.93,171.88,5.8177]
[1746817069283,5.8164,171.92,171.88,5.8177]
[1746817070087,27.6854,171.93,171.89,5.8173]
[1746817070276,27.6854,171.93,171.86,2.0]
[1746817070480,25.78,171.93,171.86,2.0]
[1746817070681,25.78,171.93,171.87,1.9101]
[1746817071987,25.78,171.93,171.92,5.8163]
[1746817072783,512.07903947,171.97,171.95,5.8152]
[1746817072976,25.8,171.96,171.87,384.6901]
[1746817073381,25.8,171.96,171.95,5.8153]
[1746817078190,25.8,171.96,171.94,5.8155]
[1746817079992,31.615,171.96,171.94,5.8155]
[1746817080694,5.8154,171.95,171.87,358.9101]
[1746817080897,5.8154,171.95,171.88,25.76]
[1746817081292,5.8154,171.95,171.92,5.8161]
[1746817086795,31.615,171.96,171.93,5.8159]
[1746817087998,25.8,171.96,171.94,5.8155]
[1746817088796,25.8,171.96,171.95,5.8153]
[1746817092200,25.8,171.96,171.94,5.8155]
[1746817093200,31.615,171.96,171.94,5.8155]
[1746817094401,25.8,171.96,171.94,5.8155]
[1746817095301,25.8,171.96,171.91,25.76]
[1746817095597,25.8,171.96,171.9,1.0]
[1746817096499,5.8154,171.95,171.9,1.0]
[1746817097303,5.8154,171.95,171.92,5.816]
[1746817098201,5.8154,171.95,171.93,5.8159]
[1746817098801,5.8157,171.94,171.9,1.0]
[1746817099506,5.8157,171.94,171.91,5.8164]
[1746817099802,5.8157,171.94,171.92,5.8162]
[1746817100397,5.8155,171.95,171.92,5.8162]
[1746817101303,5.8155,171.95,171.93,5.816]
[1746817101799,5.8155,171.95,171.9,1.0]
[1746817101800,51.54,171.96,171.92,5.8162]
[1746817102202,9.56214007,171.94,171.86,2.0]
[1746817102505,9.56214007,171.91,171.86,2.0]
[1746817102699,25.76,171.9,171.86,2.0]
[1746817102897,25.76,171.9,171.87,5.8178]
[1746817104006,31.577,171.9,171.87,5.8178]
[1746817104908,5.8174,171.89,171.87,5.8178]
[1746817105207,25.76,171.9,171.87,5.8178]
[1746817105910,31.5772,171.9,171.87,5.8178]
[1746817108115,5.8174,171.89,171.87,5.8178]
[1746817108317,25.76,171.9,171.86,2.0]
[1746817108710,5.818,171.87,171.86,2.0]
[1746817113117,5.8194,171.83,171.82,1.0]
[1746817113311,25.72,171.85,171.82,1.0]
[1746817113513,25.72,171.85,171.84,5.819]
[1746817113817,25.72,171.85,171.82,1.0]
[1746817114314,25.72,171.85,171.84,5.819]
[1746817118622,51.46,171.85,171.72,357.0]
[1746817118924,25.74,171.84,171.73,51.48]
[1746817119125,5.8193,171.84,171.74,1.9576]
[1746817119626,5.8194,171.83,171.78,5.8208]
[1746817120528,5.8197,171.82,171.79,5.8206]
[1746817121928,5.8195,171.83,171.8,5.8203]
[1746817123431,25.74,171.85,171.76,25.72]
[1746817123926,31.5587,171.85,171.82,5.8196]
[1746817126829,25.74,171.85,171.83,5.8193]
[1746817127529,31.5588,171.85,171.83,5.8193]
[1746817127733,5.8188,171.85,171.83,5.8193]
[1746817130934,5.8188,171.85,171.82,5.8196]
[1746817131129,5.819,171.84,171.82,5.8196]
[1746817131328,25.74,171.86,171.82,5.8196]
[1746817131730,25.74,171.86,171.83,5.8193]
[1746817132032,5.8188,171.85,171.76,382.72]
[1746817132434,5.8188,171.85,171.82,5.8194]
[1746817132833,5.8188,171.85,171.76,382.72]
[1746817133731,31.5584,171.86,171.76,382.72]
[1746817133934,25.74,171.86,171.76,382.72]
[1746817134136,25.74,171.86,171.85,5.8187]
[1746817135138,5.8174,171.89,171.8,27.6688]
[1746817135338,5.8174,171.89,171.81,1.9893]
[1746817135832,25.74,171.9,171.81,1.9893]
[1746817136332,25.74,171.9,171.83,5.8192]
[1746817136636,5.8185,171.86,171.83,5.8192]
[1746817137036,9.57070434,171.88,171.8,1.9488]
[1746817137438,25.72,171.87,171.8,1.9488]
[1746817138135,5.8186,171.86,171.83,5.8193]
[1746817140445,5.8187,171.85,171.82,5.8196]
[1746817140644,9.57070434,171.88,171.8,1.9488]
[1746817140940,25.72,171.87,171.8,1.9488]
[1746817141140,5.8185,171.86,171.83,5.8192]
[1746817145243,5.8187,171.85,171.83,5.8192]
[1746817146044,5.8185,171.86,171.83,5.8192]
[1746817147243,5.8188,171.85,171.83,5.8192]
[1746817148847,5.8185,171.86,171.83,5.8192]
[1746817149843,6.1239674,171.85,171.83,5.8192]
[1746817150746,5.8185,171.86,171.84,5.8189]
[1746817150940,6.1239674,171.85,171.84,5.8189]
[1746817151244,6.1239674,171.85,171.83,5.8192]
[1746817155356,11.9427674,171.85,171.83,5.8192]
[1746817156148,11.94308807,171.85,171.83,5.8192]
[1746817156649,6.12428807,171.85,171.83,5.8192]
[1746817157749,11.94298807,171.85,171.83,5.8192]
[1746817158347,6.12428807,171.85,171.83,5.8192]
[1746817158750,5.8185,171.86,171.83,5.8192]
[1746817159153,11.94278807,171.86,171.84,5.819]
[1746817159747,5.8185,171.86,171.84,5.819]
[1746817159949,11.94278807,171.86,171.84,5.819]
[1746817160147,11.94278807,171.86,171.83,5.8192]
[1746817160351,5.8187,171.85,171.83,5.8192]
[1746817162349,31.80428807,171.86,171.8,2.9488]
[1746817162549,6.12428807,171.84,171.8,2.9488]
[1746817163247,11.94348807,171.84,171.81,5.82]
[1746817163443,11.94348807,171.84,171.8,2.9488]
[1746817163644,11.94348807,171.84,171.81,5.82]
[1746817164252,6.12428807,171.82,171.8,1.0]
[1746817164652,6.12428807,171.82,171.8,6.8204]
[1746817164955,6.12428807,171.82,171.8,1.0]
[1746817165157,51.38,171.84,171.8,1.0]
[1746817165351,6.12654205,171.82,171.8,1.0]
[1746817167057,5.8194,171.83,171.8,6.8201]
[1746817167250,11.94594205,171.83,171.8,1.0]
[1746817167756,6.12654205,171.83,171.8,1.0]
[1746817168157,51.38,171.84,171.8,1.0]
[1746817168357,6.12654205,171.82,171.8,1.0]
[1746817168956,6.12654205,171.82,171.8,6.8203]
[1746817169457,6.12654205,171.82,171.81,5.82]
[1746817169857,25.7,171.85,171.8,1.0]
[1746817170054,57.50654205,171.85,171.83,5.8192]
[1746817170258,57.50654205,171.85,171.8,1.0]
[1746817170561,63.32554205,171.85,171.82,5.8196]
[1746817170755,6.12654205,171.83,171.8,1.0]
[1746817171259,11.94624205,171.83,171.8,1.0]
[1746817172360,11.94624205,171.83,171.8,6.8204]
[1746817175958,11.94624205,171.83,171.8,6.8204]
[1746817179060,5.82,171.81,171.8,1.0]
[1746817179260,6.12654205,171.82,171.8,1.0]
[1746817179562,11.94654205,171.82,171.8,1.0]
[1746817180364,5.82,171.81,171.8,1.0]
[1746817188570,11.94634205,171.82,171.8,1.0]
[1746817190169,6.12654205,171.82,171.8,6.8203]
[1746817190372,5.8195,171.83,171.8,6.8203]
[1746817190574,6.12654205,171.82,171.8,1.0]
[1746817191980,6.12654205,171.82,171.8,6.8202]
[1746817193576,6.12654205,171.82,171.74,3.7953]
[1746817193782,25.68,171.81,171.74,3.7953]
[1746817193984,1.9204,171.84,171.74,3.7953]
[1746817194179,52.16,171.83,171.74,3.7953]
[1746817194376,26.5,171.82,171.74,9.92584137]
[1746817194573,26.5,171.82,171.76,6.13054137]
[1746817194777,26.5,171.82,171.79,5.8205]
[1746817199694,26.5,171.82,171.8,5.8203]
[1746817199888,38.42538193,171.83,171.8,5.8203]
[1746817200084,38.42538193,171.83,171.74,35.60108193]
[1746817200493,11.94538193,171.83,171.74,35.60108193]
[1746817200795,1.0183,171.9,171.78,6.12484647]
[1746817200997,6.12484647,171.86,171.78,6.12484647]
[1746817201288,6.12484647,171.84,171.77,26.5]
[1746817201494,52.96,171.87,171.78,6.12484647]
[1746817201693,64.90304647,171.87,171.83,5.8192]
[1746817201894,6.12484647,171.85,171.78,391.55104647]
[1746817202894,11.94384647,171.85,171.81,5.82]
[1746817203794,5.819,171.85,171.82,5.8197]
[1746817204094,6.12484647,171.85,171.78,391.55104647]
[1746817204395,6.12484647,171.85,171.81,5.8198]
[1746817204596,11.94374647,171.85,171.81,5.8198]
[1746817205094,11.94374647,171.85,171.82,5.8197]
[1746817205294,32.3384,171.86,171.78,391.55104647]
[1746817205495,64.90324647,171.86,171.78,391.55104647]
[1746817205695,5.819,171.85,171.78,391.55104647]
[1746817205997,6.12484647,171.84,171.81,5.8199]
[1746817206297,11.94394647,171.84,171.78,385.4262]
[1746817206498,6.12484647,171.84,171.78,385.4262]
[1746817206699,32.64484647,171.84,171.8,5.8202]
[1746817206999,38.46404647,171.84,171.8,5.8202]
[1746817207197,32.64484647,171.84,171.8,5.8202]
[1746817207399,32.64484647,171.84,171.79,5.8206]
[1746817207596,32.64484647,171.84,171.76,6.12484647]
[1746817207898,38.46414647,171.84,171.76,6.12484647]
[1746817208402,6.12484647,171.84,171.79,6.12484647]
[1746817208598,26.5,171.85,171.79,6.12484647]
[1746817208794,26.46,171.86,171.8,3.7815]
[1746817208795,32.62484647,171.86,171.8,3.7815]
[1746817208994,32.62484647,171.86,171.84,5.8188]
[1746817209198,38.44324647,171.86,171.8,3.7815]
[1746817209499,26.5,171.86,171.84,5.819]
[1746817209700,32.62484647,171.86,171.84,5.819]
[1746817209998,26.5,171.86,171.84,5.819]
[1746817210199,32.62484647,171.86,171.8,3.7815]
[1746817210401,6.12484647,171.84,171.8,3.7815]
[1746817210598,32.86484647,171.86,171.8,3.7815]
[1746817210799,32.86484647,171.86,171.84,5.8188]
[1746817210998,32.86484647,171.86,171.8,3.7815]
[1746817211302,32.86484647,171.86,171.83,5.8192]
[1746817211603,11.94384647,171.84,171.8,3.7815]
[1746817211800,11.94384647,171.84,171.81,5.8199]
[1746817212203,6.12566472,171.84,171.8,3.7815]
[1746817212500,6.12569437,171.84,171.78,26.46]
[1746817213095,6.12569437,171.87,171.78,32.58569437]
[1746817213299,26.74,171.87,171.8,6.12569437]
[1746817213602,6.12569437,171.86,171.78,32.58569437]
[1746817214801,6.12569437,171.86,171.84,5.8188]
[1746817215502,6.12569437,171.86,171.78,391.45749437]
[1746817215503,6.12569437,171.86,171.85,5.8187]
[1746817215905,26.76,171.87,171.85,5.8187]
[1746817216202,6.12569437,171.86,171.85,5.8187]
[1746817216502,26.76,171.87,171.85,5.8187]
[1746817216805,6.12569437,171.86,171.85,5.8187]
[1746817217997,26.76,171.87,171.85,5.8187]
[1746817218203,6.12569437,171.86,171.85,5.8187]
[1746817218703,6.12569437,171.86,171.84,5.8189]
[1746817220105,6.12569437,171.85,171.78,358.0]
[1746817220296,6.12569437,171.82,171.78,1.0]
[1746817220497,6.12704717,171.84,171.78,1.0]
[1746817220702,28.7,171.84,171.82,5.8196]
[1746817220902,6.12704717,171.85,171.78,7.12704717]
[1746817221606,6.12704717,171.85,171.83,5.8193]
[1746817222200,1.9096,171.9,171.78,364.12704717]
[1746817222405,6.12384192,171.88,171.8,6.12384192]
[1746817223806,6.12384192,171.88,171.79,35.87954192]
[1746817225408,6.12384192,171.88,171.79,392.87954192]
[1746817226109,6.12384192,171.88,171.81,6.12384192]
[1746817227011,6.12384192,171.88,171.86,5.8183]
[1746817227405,6.12384192,171.88,171.85,5.8186]
[1746817227704,6.12384192,171.88,171.81,363.12384192]
[1746817228710,6.12384192,171.88,171.86,5.8181]
[1746817229112,6.12384192,171.88,171.81,363.12384192]
[1746817229813,6.12384192,171.88,171.86,5.8181]
[1746817230705,6.12384192,171.88,171.81,363.12384192]
[1746817231009,6.12384192,171.88,171.85,5.8185]
[1746817231211,6.12384192,171.86,171.81,357.0]
[1746817231515,6.12384192,171.83,171.81,357.0]
[1746817231809,56.62,171.85,171.81,357.0]
[1746817232015,5.8191,171.84,171.81,357.0]
[1746817232214,11.94476484,171.84,171.81,357.0]
[1746817232715,5.8194,171.83,171.81,357.0]
[1746817233011,6.12566484,171.84,171.81,357.0]
[1746817233312,11.94476484,171.84,171.81,362.82]
[1746817234415,11.94476484,171.84,171.81,5.82]
[1746817236420,11.94476484,171.84,171.8,5.8203]
[1746817236913,11.94476484,171.84,171.78,1.0]
[1746817237118,11.94476484,171.84,171.81,5.82]
[1746817237319,68.54446484,171.85,171.78,1.0]
[1746817237813,5.8191,171.84,171.78,1.0]
[1746817238223,62.72566484,171.85,171.8,5.8201]
[1746817238720,6.12566484,171.85,171.78,1.0]
[1746817238919,62.76566484,171.85,171.78,1.0]
[1746817239419,5.819,171.84,171.78,1.0]
[1746817239820,5.819,171.84,171.81,5.8199]
[1746817243125,5.819,171.84,171.82,5.8197]
[1746817243724,5.819,171.84,171.81,5.8199]
[1746817245122,39.84446484,171.85,171.82,5.8197]
[1746817245425,34.02566484,171.85,171.78,1.0]
[1746817245728,5.819,171.84,171.81,5.8199]
[1746817247126,5.819,171.84,171.82,5.8197]
[1746817251426,5.8194,171.83,171.81,5.8199]
[1746817251627,34.02566484,171.85,171.81,5.8199]
[1746817252025,34.02566484,171.85,171.78,1.0]
[1746817252228,6.12566484,171.81,171.78,1.0]
[1746817252621,6.12566484,171.81,171.79,5.8205]
[1746817252824,6.12566484,171.83,171.78,1.0]
[1746817253420,11.94516484,171.83,171.8,5.8201]
[1746817255231,34.1792,171.84,171.78,1.0]
[1746817255733,34.1792,171.84,171.81,5.8198]
[1746817255935,34.1792,171.84,171.78,1.0]
[1746817256333,34.1792,171.84,171.81,5.8199]
[1746817256728,6.12566484,171.86,171.78,7.12566484]
[1746817256935,62.68566484,171.86,171.84,5.819]
[1746817257840,68.50416484,171.86,171.83,5.8193]
[1746817258133,62.68566484,171.86,171.78,7.12566484]
[1746817258332,62.68566484,171.86,171.84,5.8188]
[1746817260237,56.56,171.86,171.85,5.8187]
[1746817260439,62.68566484,171.86,171.85,5.8187]
[1746817260737,62.68566484,171.86,171.8,6.12566484]
[1746817260937,62.68566484,171.86,171.78,1.0]
[1746817261337,56.56,171.86,171.84,5.8187]
[1746817261536,56.56,171.86,171.79,6.12566484]
[1746817262138,56.56,171.86,171.84,5.8189]
[1746817262333,68.36386484,171.87,171.84,5.8189]
[1746817262738,62.54566484,171.87,171.85,5.8187]
[1746817262939,1.8511,171.94,171.79,6.12566484]
[1746817263142,6.12566484,171.88,171.79,363.12566484]
[1746817263437,6.12566484,171.88,171.79,391.18566484]
[1746817264040,6.12566484,171.88,171.86,5.8182]
[1746817264635,6.12566484,171.88,171.81,6.12566484]
[1746817264840,1.8511,171.94,171.83,6.12566484]
[1746817264841,56.36,171.9,171.83,6.12566484]
[1746817265139,62.48566484,171.9,171.84,1.8592]
[1746817265340,68.30296484,171.9,171.84,1.8592]
[1746817265941,68.30296484,171.9,171.87,5.8178]
[1746817266136,40.30296484,171.9,171.87,5.8178]
[1746817266336,68.32296484,171.9,171.87,5.8178]
[1746817267336,5.8173,171.89,171.87,5.8178]
[1746817267538,5.8173,171.89,171.86,5.8182]
[1746817267739,5.8173,171.89,171.84,1.8592]
[1746817267740,62.50566484,171.9,171.84,1.8592]
[1746817268038,68.32296484,171.9,171.86,5.8182]
[1746817268440,62.50566484,171.9,171.86,5.8182]
[1746817268638,5.8174,171.89,171.86,5.8182]
[1746817271743,5.8174,171.89,171.87,5.818]
[1746817272738,68.32276484,171.9,171.87,5.818]
[1746817275242,6.12566484,171.88,171.86,5.8183]
[1746817276342,5.8174,171.89,171.86,5.8183]
[1746817276542,11.94306484,171.89,171.87,5.818]
[1746817276841,11.94306484,171.89,171.84,1.8592]
[1746817277037,11.94306484,171.89,171.86,5.8182]
[1746817277543,11.94306484,171.89,171.84,1.8592]
[1746817278142,11.94306484,171.89,171.86,5.8182]
[1746817279339,6.12566484,171.87,171.83,1.0]
[1746817279839,6.12566484,171.85,171.83,1.0]
[1746817280040,34.46566484,171.85,171.83,1.0]
[1746817280440,5.819,171.84,171.83,1.0]
[1746817282445,34.46566484,171.85,171.77,3.7447]
[1746817282644,6.12566484,171.83,171.77,3.7447]
[1746817283041,28.34,171.85,171.8,5.8202]
[1746817283246,6.12566484,171.84,171.77,9.87036484]
[1746817283449,6.12566484,171.86,171.79,6.12566484]
[1746817283648,27.56,171.87,171.79,6.12566484]
[1746817284036,27.56,171.87,171.81,6.12566484]
[1746817284240,6.12566484,171.88,171.86,5.8181]
[1746817284647,6.12566484,171.88,171.85,5.8186]
[1746817284851,6.12566484,171.88,171.79,6.12566484]
[1746817285345,6.12566484,171.88,171.83,5.8193]
[1746817285850,5.8185,171.86,171.84,5.819]
[1746817286151,5.8185,171.86,171.78,30.5096]
[1746817286351,5.8187,171.85,171.78,30.5096]
[1746817286854,5.8185,171.86,171.83,5.8193]
[1746817287853,5.8181,171.87,171.84,5.819]
[1746817288256,27.56,171.89,171.78,30.5096]
[1746817288448,33.3775,171.89,171.86,5.8182]
[1746817289150,27.56,171.89,171.87,5.818]
[1746817289448,27.56,171.89,171.79,21.20923403]
[1746817289652,27.56,171.89,171.82,27.4]
[1746817289851,27.56,171.89,171.88,5.8177]
[1746817292557,27.56,171.89,171.87,5.8179]
[1746817293349,27.56,171.89,171.88,5.8177]
[1746817294756,27.56,171.89,171.87,5.8179]
[1746817296853,27.56,171.89,171.88,5.8177]
[1746817298553,54.8,171.93,171.9,5.8168]
[1746817298756,502.8,172.0,171.87,27.26]
[1746817299059,27.56,171.98,171.96,5.8148]
[1746817299250,27.56,171.98,171.91,27.36]
[1746817299453,27.56,171.98,171.92,3.969]
[1746817301561,27.56,171.98,171.96,5.8147]
[1746817302256,27.56,171.98,171.97,5.8146]
[1746817302555,110.17357893,172.02,171.92,5.8093]
[1746817302960,110.17357893,172.02,171.99,5.8137]
[1746817303166,27.56,172.02,171.99,5.8137]
[1746817303369,27.56,172.02,171.94,27.56]
[1746817303764,27.56,172.02,171.92,362.8093]
[1746817303765,27.56,172.02,171.92,360.969]
[1746817303964,5.8146,171.98,171.94,5.8154]
[1746817304466,27.56,171.98,171.92,360.969]
[1746817304863,5.8147,171.97,171.93,5.8158]
[1746817305362,5.8147,171.97,171.92,360.969]
[1746817306366,5.8147,171.97,171.92,3.969]
[1746817306966,5.8147,171.97,171.94,5.8156]
[1746817307267,5.815,171.96,171.92,3.969]
[1746817308171,27.56,171.98,171.91,5.8163]
[1746817308371,27.56,171.98,171.89,27.56]
[1746817309074,27.56,171.98,171.89,31.3332]
[1746817310471,5.8152,171.96,171.89,31.3332]
[1746817311175,5.8152,171.96,171.92,5.8161]
[1746817311472,5.8154,171.95,171.92,5.8161]
[1746817311673,27.56,171.98,171.93,5.816]
[1746817312071,5.8153,171.96,171.93,5.816]
[1746817312272,27.56,171.98,171.93,5.816]
[1746817312475,27.56,171.98,171.92,5.8162]
[1746817312876,5.8153,171.95,171.92,5.8162]
[1746817313575,5.8157,171.94,171.91,5.8166]
[1746817314274,5.8157,171.94,171.89,31.3332]
[1746817314275,27.08,171.94,171.89,3.7732]
[1746817314470,27.08,171.94,171.88,2.14]
[1746817314670,5.8169,171.91,171.88,7.9576]
[1746817314871,27.08,171.94,171.85,65.65]
[1746817314872,27.08,171.92,171.85,38.57]
[1746817315681,5.8169,171.91,171.88,5.8175]
[1746817316479,27.08,171.92,171.9,5.8169]
[1746817318673,32.8963,171.92,171.89,5.8172]
[1746817318978,27.08,171.92,171.86,2.14]
[1746817319379,27.08,171.92,171.9,5.8169]
[1746817320477,27.08,171.92,171.86,2.14]
[1746817321882,32.8965,171.92,171.86,2.14]
[1746817322082,27.08,171.92,171.86,2.14]
[1746817322276,5.8169,171.91,171.88,5.8175]
[1746817323181,5.817,171.9,171.88,5.8175]
[1746817323384,27.08,171.92,171.88,5.8175]
[1746817323782,27.08,171.92,171.86,2.14]
[1746817324283,27.08,171.92,171.9,5.8167]
[1746817324883,32.8964,171.92,171.89,5.8172]
[1746817325084,32.8964,171.92,171.86,2.14]
[1746817325085,27.08,171.92,171.86,2.14]
[1746817326083,5.8177,171.88,171.86,2.14]
[1746817326282,27.08,171.88,171.83,3.7028]
[1746817326483,27.0,171.87,171.79,27.0]
[1746817327290,5.8184,171.86,171.79,27.0]
[1746817327881,27.0,171.87,171.79,27.0]
[1746817328886,27.0,171.87,171.86,5.8183]
[1746817331188,2.2146,171.92,171.88,5.8174]
[1746817331388,54.0,171.91,171.82,2.14]
[1746817331891,54.0,171.91,171.83,26.94]
[1746817332090,27.08,171.91,171.9,5.817]
[1746817337797,27.08,171.91,171.89,5.8173]
[1746817337994,27.08,171.91,171.85,3.6334]
[1746817338606,9.56783403,171.95,171.85,3.6334]
[1746817338896,59.7559,171.94,171.85,3.6334]
[1746817339499,32.8959,171.94,171.85,3.6334]
[1746817339996,32.8959,171.94,171.9,5.8168]
[1746817340298,32.8959,171.94,171.85,3.6334]
[1746817340489,32.8959,171.94,171.9,5.8167]
[1746817341299,27.08,171.94,171.91,5.8166]
[1746817341500,27.08,171.94,171.85,3.6334]
[1746817341691,27.08,171.94,171.86,26.84]
[1746817342199,27.08,171.94,171.93,5.816]
[1746817348103,27.08,171.94,171.9,2.14]
[1746817348104,27.08,171.94,171.92,5.8163]
[1746817348295,27.08,171.94,171.9,2.14]
[1746817348904,5.8162,171.93,171.9,7.9568]
[1746817349202,53.78,171.94,171.9,2.14]
[1746817349404,5.8166,171.92,171.9,2.14]
[1746817349593,53.78,171.94,171.9,2.14]
[1746817350004,5.8165,171.92,171.9,2.14]
[1746817350304,53.78,171.94,171.9,2.14]
[1746817350701,5.8165,171.92,171.9,2.14]
[1746817350904,53.78,171.94,171.9,7.957]
[1746817351305,5.8164,171.92,171.9,7.957]
[1746817351607,53.78,171.94,171.9,7.957]
[1746817351803,5.8161,171.93,171.9,7.957]
[1746817352803,59.5958,171.94,171.9,2.14]
[1746817353407,53.78,171.94,171.9,2.14]
[1746817353708,53.78,171.94,171.91,5.8165]
[1746817353909,53.78,171.94,171.9,2.14]
[1746817354709,27.08,171.94,171.9,2.14]
[1746817355810,27.08,171.94,171.92,5.8161]
[1746817357708,27.08,171.94,171.91,5.8167]
[1746817358208,32.8958,171.94,171.91,5.8167]
[1746817358908,27.08,171.94,171.92,5.8163]
[1746817362003,32.8958,171.94,171.92,5.8163]
[1746817362205,27.08,171.94,171.9,2.14]
[1746817362811,5.8167,171.91,171.9,2.14]
[1746817363011,32.2167,171.91,171.9,2.14]
[1746817365505,26.4,171.91,171.9,2.14]
[1746817365907,27.08,171.94,171.92,5.8162]
[1746817367005,27.08,171.94,171.9,2.14]
[1746817367812,5.816,171.93,171.9,7.9568]
[1746817368111,5.816,171.93,171.9,2.14]
[1746817368304,32.8958,171.94,171.9,2.14]
[1746817368509,27.08,171.94,171.9,2.14]
[1746817369814,53.18,171.98,171.9,2.14]
[1746817370007,53.18,171.98,171.91,1.8334]
[1746817370210,58.9944,171.98,171.94,5.8154]
[1746817371413,26.82,171.98,171.94,5.8154]
[1746817371613,53.16,171.98,171.94,5.8154]
[1746817371816,53.16,171.98,171.93,5.8159]
[1746817372317,53.16,171.98,171.92,5.8162]
[1746817372914,53.16,171.98,171.93,5.816]
[1746817373516,5.8152,171.96,171.93,5.816]